fUSD/lending_fUSD_20250209
["ID","MTS","AMOUNT","RATE_DAILY","PERIOD"]
[352439162,1739107877775,-500.0,0.00011573,2]
[352439163,1739107877784,-500.0,0.00011573,2]
[352439164,1739107877795,-500.0,0.00011573,2]
[352439165,1739107877805,-439.83,0.00011573,2]
[352439166,1739107877814,-500.0,0.00011573,2]
[352439167,1739107877823,-500.0,0.00011573,2]
[352439168,1739107877833,-509.2,0.00011573,2]
[352439169,1739107877842,-500.0,0.00011573,2]
[352439170,1739107877852,-150.0,0.00011577,2]
[352439171,1739107877861,-500.0,0.00011579,2]
[352439172,1739107877871,-500.0,0.00011579,2]
[352439173,1739107877881,-587.0282467,0.00011579,2]
[352439174,1739107877890,-350.46,0.00011579,2]
[352439175,1739107877900,-500.0,0.00011579,2]
[352439176,1739107877909,-500.0,0.00011579,2]
[352439177,1739107877918,-500.0,0.00011579,2]
[352439178,1739107877928,-500.0,0.00011579,2]
[352439179,1739107877938,-500.0,0.00011579,2]
[352439180,1739107877947,-500.0,0.00011579,2]
[352439181,1739107877958,-500.0,0.00011579,2]
[352439182,1739107877967,-283.48,0.00011579,2]
[352439183,1739107877977,-500.0,0.00011579,2]
[352439184,1739107877986,-500.0,0.00011579,2]
[352439185,1739107877996,-500.0,0.00011579,2]
[352439186,1739107878006,-167.85,0.00011579,2]
[352439187,1739107878016,-500.0,0.00011579,2]
[352439188,1739107878026,-869.24,0.00011579,2]
[352439189,1739107878035,-917.81,0.00011579,2]
[352439190,1739107878046,-620.420557,0.00011579,2]
[352439191,1739107878056,-643.61,0.00011579,2]
[352439192,1739107878066,-622.5,0.00011579,2]
[352439193,1739107878075,-500.0,0.00011579,2]
[352439194,1739107878085,-500.0,0.00011579,2]
[352439195,1739107878095,-712.57,0.00011579,2]
[352439196,1739107878105,-749.43,0.00011579,2]
[352439197,1739107878115,-500.0,0.00011579,2]
[352439198,1739107878125,-504.51,0.00011579,2]
[352439199,1739107878135,-500.0,0.00011579,2]
[352439200,1739107878144,-612.163729,0.00011579,2]
[352439201,1739107878153,-773.52,0.00011579,2]
[352439202,1739107878164,-1582.01,0.00011579,2]
[352439203,1739107878173,-500.0,0.00011579,2]
[352439204,1739107878183,-1233.21,0.00011579,2]
[352439205,1739107878192,-655.54,0.00011579,2]
[352439206,1739107878202,-979.19,0.00011579,2]
[352439207,1739107878212,-551.62,0.00011579,2]
[352439208,1739107878222,-697.89,0.00011579,2]
[352439209,1739107878232,-917.86,0.00011579,2]
[352439210,1739107878242,-772.07,0.00011579,2]
[352439211,1739107878256,-2450.21,0.00011579,2]
[352439212,1739107878266,-517.95,0.00011579,2]
[352439213,1739107878276,-1029.57,0.00011579,2]
[352439214,1739107878286,-803.93,0.00011579,2]
[352439215,1739107878297,-500.0,0.00011579,2]
[352439216,1739107878307,-823.01,0.00011579,2]
[352439217,1739107878319,-1007.33,0.00011579,2]
[352439218,1739107878329,-500.0,0.00011579,2]
[352439219,1739107878339,-809.98,0.00011579,2]
[352439220,1739107878349,-817.22,0.00011579,2]
[352439221,1739107878359,-997.12,0.00011579,2]
[352439222,1739107878369,-862.14,0.00011579,2]
[352439223,1739107878380,-536.42,0.00011579,2]
[352439224,1739107878390,-540.78,0.00011579,2]
[352439225,1739107878401,-1290.99,0.00011579,2]
[352439226,1739107878412,-905.18,0.00011579,2]
[352439227,1739107878422,-2008.31,0.00011579,2]
[352439228,1739107878433,-941.54,0.00011579,2]
[352439229,1739107878443,-999.5,0.00011579,2]
[352439230,1739107878453,-1002.42,0.00011579,2]
[352439231,1739107878463,-1130.57,0.00011579,2]
[352439232,1739107878473,-803.87,0.00011579,2]
[352439233,1739107878483,-750.13,0.00011579,2]
[352439234,1739107878493,-1309.04,0.00011579,2]
[352439235,1739107878503,-500.0,0.00011579,2]
[352439236,1739107878512,-550.74,0.00011579,2]
[352439237,1739107878522,-998.43,0.00011579,2]
[352439238,1739107878532,-602.27,0.00011579,2]
[352439239,1739107878543,-585.34,0.00011579,2]
[352439240,1739107878553,-500.0,0.00011579,2]
[352439241,1739107878562,-446.73,0.00011579,2]
[352439242,1739107878571,-531.22,0.00011579,2]
[352439243,1739107878581,-1046.48,0.00011579,2]
[352439244,1739107878590,-906.83,0.00011579,2]
[352439245,1739107878600,-500.0,0.00011579,2]
[352439246,1739107878609,-500.0,0.0001158,2]
[352439247,1739107878619,-500.0,0.0001158,2]
[352439248,1739107878629,-500.0,0.0001158,2]
[352439249,1739107878640,-500.0,0.0001158,2]
[352439250,1739107878649,-500.0,0.0001158,2]
[352439251,1739107878659,-500.0,0.0001158,2]
[352439252,1739107878669,-500.0,0.0001158,2]
[352439253,1739107878679,-500.0,0.0001158,2]
[352439254,1739107878688,-500.0,0.0001158,2]
[352439255,1739107878700,-500.0,0.0001158,2]
[352439256,1739107878710,-500.0,0.0001158,2]
[352439257,1739107878720,-500.0,0.0001158,2]
[352439258,1739107878731,-501.82,0.0001158,2]
[352439259,1739107878742,-500.0,0.0001158,2]
[352439260,1739107878752,-500.0,0.0001158,2]
[352439261,1739107878763,-541.29,0.0001158,2]
[352439262,1739107878774,-500.0,0.0001158,2]
[352439263,1739107878784,-500.0,0.0001158,2]
[352439264,1739107878796,-701.75,0.0001158,2]
[352439265,1739107878807,-500.0,0.0001158,2]
[352439266,1739107878819,-500.0,0.0001158,2]
[352439267,1739107878829,-500.0,0.0001158,2]
[352439268,1739107878839,-554.16,0.0001158,2]
[352439269,1739107878850,-500.0,0.0001158,2]
[352439270,1739107878860,-500.0,0.0001158,2]
[352439271,1739107878871,-500.0,0.0001158,2]
[352439272,1739107878881,-500.0,0.0001158,2]
[352439273,1739107878891,-500.0,0.0001158,2]
[352439274,1739107878902,-500.0,0.0001158,2]
[352439275,1739107878913,-508.51,0.0001158,2]
[352439276,1739107878924,-500.0,0.0001158,2]
[352439277,1739107878935,-566.95,0.0001158,2]
[352439278,1739107878945,-500.0,0.0001158,2]
[352439279,1739107878955,-500.0,0.0001158,2]
[352439280,1739107878965,-775.06,0.0001158,2]
[352439281,1739107878975,-516.17,0.0001158,2]
[352439282,1739107878986,-352.54876365,0.0001158,2]
[352439283,1739107878996,-576.02,0.0001158,2]
[352439284,1739107879006,-500.0,0.0001158,2]
[352439285,1739107879017,-500.0,0.0001158,2]
[352439286,1739107879027,-573.59,0.0001158,2]
[352439287,1739107879040,-500.0,0.0001158,2]
[352439288,1739107879050,-500.0,0.0001158,2]
[352439289,1739107879061,-539.69,0.0001158,2]
[352439290,1739107879071,-727.19,0.0001158,2]
[352439291,1739107879081,-500.0,0.0001158,2]
[352439292,1739107879092,-620.23,0.0001158,2]
[352439293,1739107879102,-543.97,0.0001158,2]
[352439294,1739107879112,-573.79,0.0001158,2]
[352439295,1739107879123,-183.84,0.0001158,2]
[352439296,1739107879134,-500.0,0.0001158,2]
[352439297,1739107879144,-638.01,0.0001158,2]
[352439298,1739107879155,-601.24,0.0001158,2]
[352439299,1739107879165,-500.0,0.0001158,2]
[352439300,1739107879175,-500.0,0.0001158,2]
[352439301,1739107879185,-704.82,0.0001158,2]
[352439302,1739107879195,-500.0,0.0001158,2]
[352439303,1739107879206,-603.16,0.0001158,2]
[352439304,1739107879217,-731.45,0.0001158,2]
[352439305,1739107879227,-500.0,0.0001158,2]
[352439306,1739107879237,-730.12,0.0001158,2]
[352439307,1739107879249,-1316.46,0.0001158,2]
[352439308,1739107879261,-708.33,0.0001158,2]
[352439309,1739107879271,-500.0,0.0001158,2]
[352439310,1739107879282,-787.33,0.0001158,2]
[352439311,1739107879295,-563.98,0.0001158,2]
[352439312,1739107879306,-1390.78,0.0001158,2]
[352439313,1739107879317,-500.0,0.0001158,2]
[352439314,1739107879328,-500.0,0.0001158,2]
[352439315,1739107879338,-698.39,0.0001158,2]
[352439316,1739107879349,-500.0,0.0001158,2]
[352439317,1739107879360,-1393.85,0.0001158,2]
[352439318,1739107879370,-514.6,0.0001158,2]
[352439319,1739107879380,-936.4,0.0001158,2]
[352439320,1739107879392,-1378.75,0.0001158,2]
[352439321,1739107879403,-1334.52,0.0001158,2]
[352439322,1739107879413,-500.0,0.0001158,2]
[352439323,1739107879423,-500.0,0.0001158,2]
[352439324,1739107879434,-500.0,0.0001158,2]
[352439325,1739107879444,-1314.92,0.0001158,2]
[352439326,1739107879455,-949.47,0.0001158,2]
[352439327,1739107879464,-977.97,0.0001158,2]
[352439328,1739107879474,-560.88,0.0001158,2]
[352439329,1739107879484,-500.0,0.0001158,2]
[352439330,1739107879494,-769.7,0.0001158,2]
[352439331,1739107879504,-731.74,0.0001158,2]
[352439332,1739107879515,-755.71,0.0001158,2]
[352439333,1739107879525,-287.01296849,0.0001158,2]
[352439334,1739107879534,-672.89,0.0001158,2]
[352439335,1739107879546,-500.0,0.0001158,2]
[352439336,1739107879557,-500.0,0.0001158,2]
[352439337,1739107879567,-789.01,0.0001158,2]
[352439338,1739107879576,-538.17,0.0001158,2]
[352439339,1739107879586,-703.45,0.0001158,2]
[352439340,1739107879597,-368.95925724,0.0001158,2]
[352439341,1739107879607,-500.0,0.0001158,2]
[352439342,1739107879617,-500.0,0.0001158,2]
[352439343,1739107879627,-500.0,0.0001158,2]
[352439344,1739107879637,-1016.08,0.0001158,2]
[352439345,1739107879647,-576.55,0.0001158,2]
[352439346,1739107879657,-705.29,0.0001158,2]
[352439347,1739107879667,-500.0,0.00011581,2]
[352439348,1739107879676,-500.0,0.00011581,2]
[352439349,1739107879686,-642.01,0.00011581,2]
[352439350,1739107879697,-539.72,0.00011581,2]
[352439351,1739107879707,-500.0,0.00011581,2]
[352439352,1739107879718,-500.0,0.00011581,2]
[352439353,1739107879728,-202.0,0.00011588,2]
[352439354,1739107879738,-150.0,0.00011597,2]
[352439355,1739107879748,-196.69349625,0.0001161,2]
[352439356,1739107879758,-366.15524571,0.00011617,2]
[352439357,1739107879769,-657.54455837,0.00011617,2]
[352439358,1739107879779,-500.0,0.00011637,2]
[352439359,1739107879789,-371.49346741,0.00011637,2]
[352439360,1739107879799,-1995.06,0.00011637,2]
[352439361,1739107879809,-500.0,0.00011637,2]
[352439362,1739107879820,-5114.35460058,0.00011638,3]
[352439363,1739107879830,-377042.79776585,0.00011638,3]
[352439364,1739107880181,-1028.98011752,0.00011638,3]
[352439365,1739107880194,-2211.72089979,0.00011638,3]
[352439366,1739107880445,-156.69,9.956e-05,2]
[352439367,1739107880455,-766.53,0.0001158,2]
[352439368,1739107880465,-376254.79155654,0.00011638,3]
[352439369,1739107880477,-2435.45876135,0.00011638,3]
[352439370,1739107880488,-10377.59079056,0.00011638,3]
[352439371,1739107880500,-549.73316218,0.00011638,3]
[352439372,1739107880519,-328.86805204,0.00011638,3]
[352439373,1739107880530,-4559.689305,0.00011638,3]
[352439374,1739107880554,-500.0,0.0001062,2]
[352439375,1739107880563,-4513.6936527,0.00011638,3]
[352439376,1739107880639,-65620.04134899,0.00011638,3]
[352439377,1739107880969,-500.0,0.0001062,2]
[352439378,1739107880979,-500.0,0.0001062,2]
[352439379,1739107880988,-201.98778846,0.00010621,2]
[352439380,1739107881006,-298.01221154,0.00010621,2]
[352439381,1739107881016,-626.1422533,0.00010736,2]
[352439382,1739107881048,-409.8027467,0.00010736,2]
[352439383,1739107881057,-25.69946484,0.00010757,2]
[352439388,1739108816167,-2009.0,8.219e-05,5]
[352439389,1739108816190,-383.29,8.219e-05,2]
[352439390,1739108816211,-595.3719,8.699e-05,2]
[352439391,1739108816232,-150.0,8.835e-05,2]
[352439392,1739108816252,-298.3528,8.836e-05,2]
[352439393,1739108816272,-413.22,8.836e-05,2]
[352439394,1739108816292,-389.2425,8.836e-05,2]
[352439395,1739108816312,-542.15123481,8.836e-05,2]
[352439417,1739109032056,-630.78227732,8.836e-05,2]
[352439418,1739109032068,-24204.98518787,8.836e-05,2]
[352439419,1739109032078,-67257.5347,8.836e-05,2]
[352439420,1739109032088,-150.0,8.959e-05,2]
[352439421,1739109032098,-605.7017,8.973e-05,2]
[352439422,1739109032108,-5000.0,8.973e-05,2]
[352439423,1739109032117,-241.31,9.075e-05,2]
[352439424,1739109032127,-228.08,9.205e-05,2]
[352439425,1739109032136,-2000.0,9.255e-05,2]
[352439426,1739109032147,-150.89,9.613e-05,2]
[352439427,1739109032156,-150.89,9.619e-05,2]
[352439428,1739109032165,-150.89,9.625e-05,2]
[352439429,1739109032174,-150.89,9.631e-05,2]
[352439430,1739109032184,-150.89,9.637e-05,2]
[352439431,1739109032193,-150.89,9.643e-05,2]
[352439432,1739109032203,-150.89,9.649e-05,2]
[352439433,1739109032212,-150.89,9.655e-05,2]
[352439434,1739109032221,-150.89,9.661e-05,2]
[352439435,1739109032230,-154.3,9.734e-05,2]
[352439436,1739109032240,-1000.0,9.801e-05,2]
[352439437,1739109032250,-150.0,9.82e-05,2]
[352439438,1739109032259,-177.8,9.854e-05,2]
[352439439,1739109032268,-150.0,9.929e-05,2]
[352439440,1739109032278,-150.0,9.965e-05,2]
[352439441,1739109032291,-209.0,9.973e-05,2]
[352439442,1739109032300,-8894.39158438,0.0001,2]
[352439443,1739109032310,-367.86,0.00010064,2]
[352439444,1739109032320,-150.0,0.00010113,2]
[352439445,1739109032329,-227.09,0.00010137,2]
[352439446,1739109032339,-370.95,0.00010158,2]
[352439447,1739109032350,-200.0,0.00010262,2]
[352439448,1739109032360,-150.0,0.00010283,2]
[352439449,1739109032369,-374.45,0.00010312,2]
[352439450,1739109032379,-150.0,0.00010337,2]
[352439451,1739109032388,-376.63378792,0.00010476,2]
[352439452,1739109032400,-6.65621208,0.00010476,2]
[352439453,1739109032410,-150.0,0.00010557,2]
[352439454,1739109032421,-150.0,0.00010592,2]
[352439455,1739109032430,-93.0157885,0.00010595,2]
[352439456,1739109032449,-56.9842115,0.00010595,2]
[352439457,1739109032459,-500.0,0.00010618,2]
[352439458,1739109032468,-413.613704,0.00010619,2]
[352439459,1739109032478,-167.662517,0.00010619,2]
[352439460,1739109032487,-155.501539,0.00010619,2]
[352439461,1739109032497,-408.109153,0.00010619,2]
[352439462,1739109032506,-350.5047319,0.00010619,2]
[352439463,1739109032525,-149.4952681,0.00010619,2]
[352439464,1739109032536,-500.0,0.00010619,2]
[352439465,1739109032546,-359.2264638,0.00010619,2]
[352439466,1739109032572,-140.7735362,0.00010619,2]
[352439467,1739109032581,-500.0,0.00010619,2]
[352439468,1739109032590,-500.0,0.00010619,2]
[352439469,1739109032599,-500.0,0.00010619,2]
[352439471,1739109032608,-500.0,0.00010619,2]
[352439473,1739109032618,-500.0,0.00010619,2]
[352439475,1739109032628,-500.0,0.00010619,2]
[352439476,1739109032637,-500.0,0.00010619,2]
[352439478,1739109032648,-500.0,0.00010619,2]
[352439480,1739109032660,-500.0,0.00010619,2]
[352439482,1739109032671,-500.0,0.00010619,2]
[352439484,1739109032680,-500.0,0.00010619,2]
[352439486,1739109032690,-500.0,0.00010619,2]
[352439488,1739109032699,-500.0,0.00010619,2]
[352439490,1739109032709,-466.80548954,0.00010619,2]
[352439492,1739109032718,-500.0,0.00010619,2]
[352439494,1739109032729,-265.03305745,0.00010619,2]
[352439496,1739109032739,-500.0,0.00010619,2]
[352439498,1739109032748,-502.72946596,0.00010619,2]
[352439500,1739109032758,-500.0,0.00010619,2]
[352439502,1739109032768,-500.0,0.00010619,2]
[352439504,1739109032777,-500.0,0.00010619,2]
[352439505,1739109032787,-500.0,0.00010619,2]
[352439507,1739109032797,-500.0,0.00010619,2]
[352439509,1739109032806,-500.0,0.00010619,2]
[352439511,1739109032817,-500.0,0.00010619,2]
[352439513,1739109032826,-500.0,0.00010619,2]
[352439515,1739109032835,-500.0,0.00010619,2]
[352439516,1739109032844,-500.0,0.00010619,2]
[352439517,1739109032853,-500.0,0.00010619,2]
[352439518,1739109032862,-500.0,0.00010619,2]
[352439519,1739109032872,-500.0,0.00010619,2]
[352439520,1739109032882,-500.0,0.00010619,2]
[352439521,1739109032891,-500.0,0.00010619,2]
[352439522,1739109032899,-500.0,0.00010619,2]
[352439523,1739109032908,-500.0,0.00010619,2]
[352439524,1739109032917,-583.30521897,0.00010619,2]
[352439525,1739109032926,-500.0,0.00010619,2]
[352439526,1739109032935,-500.0,0.00010619,2]
[352439527,1739109032944,-500.0,0.00010619,2]
[352439528,1739109032952,-500.0,0.00010619,2]
[352439529,1739109032962,-500.0,0.00010619,2]
[352439530,1739109032970,-500.0,0.00010619,2]
[352439531,1739109032979,-500.0,0.00010619,2]
[352439532,1739109032988,-500.0,0.00010619,2]
[352439533,1739109032997,-500.0,0.00010619,2]
[352439534,1739109033006,-500.0,0.00010619,2]
[352439535,1739109033015,-500.0,0.00010619,2]
[352439536,1739109033024,-500.0,0.00010619,2]
[352439538,1739109033036,-500.0,0.00010619,2]
[352439539,1739109033046,-500.0,0.00010619,2]
[352439540,1739109033057,-500.0,0.00010619,2]
[352439541,1739109033067,-500.0,0.00010619,2]
[352439542,1739109033077,-500.0,0.00010619,2]
[352439543,1739109033087,-500.0,0.00010619,2]
[352439544,1739109033100,-500.0,0.00010619,2]
[352439545,1739109033111,-500.00189374,0.00010619,2]
[352439546,1739109033124,-501.7095115,0.00010619,2]
[352439547,1739109033138,-502.15327328,0.00010619,2]
[352439548,1739109033150,-500.0,0.00010619,2]
[352439549,1739109033162,-500.0,0.00010619,2]
[352439550,1739109033174,-533.4073332,0.00010619,2]
[352439551,1739109033184,-500.0,0.00010619,2]
[352439552,1739109033196,-500.0,0.00010619,2]
[352439553,1739109033207,-500.0,0.00010619,2]
[352439554,1739109033220,-500.0,0.00010619,2]
[352439555,1739109033232,-500.0,0.00010619,2]
[352439556,1739109033243,-500.0,0.00010619,2]
[352439557,1739109033255,-500.0,0.00010619,2]
[352439558,1739109033266,-500.0,0.00010619,2]
[352439559,1739109033279,-500.0,0.00010619,2]
[352439560,1739109033291,-500.0,0.00010619,2]
[352439561,1739109033303,-500.0,0.00010619,2]
[352439562,1739109033315,-500.0,0.00010619,2]
[352439563,1739109033327,-500.0,0.00010619,2]
[352439564,1739109033338,-500.0,0.00010619,2]
[352439565,1739109033349,-500.0,0.00010619,2]
[352439566,1739109033361,-500.0,0.00010619,2]
[352439567,1739109033372,-500.0,0.00010619,2]
[352439568,1739109033382,-500.0,0.00010619,2]
[352439569,1739109033392,-500.0,0.00010619,2]
[352439570,1739109033402,-500.0,0.00010619,2]
[352439571,1739109033414,-500.0,0.00010619,2]
[352439572,1739109033425,-500.0,0.00010619,2]
[352439573,1739109033436,-500.0,0.00010619,2]
[352439574,1739109033448,-500.0,0.00010619,2]
[352439575,1739109033459,-500.0,0.00010619,2]
[352439576,1739109033470,-500.0,0.00010619,2]
[352439577,1739109033482,-335.36743005,0.00010619,2]
[352439578,1739109033494,-500.0,0.00010619,2]
[352439579,1739109033505,-500.0,0.00010619,2]
[352439580,1739109033517,-500.0,0.00010619,2]
[352439581,1739109033529,-500.0,0.00010619,2]
[352439582,1739109033542,-500.0,0.00010619,2]
[352439583,1739109033554,-500.0,0.00010619,2]
[352439584,1739109033566,-500.0,0.00010619,2]
[352439585,1739109033577,-500.0,0.00010619,2]
[352439586,1739109033590,-500.0,0.00010619,2]
[352439587,1739109033603,-500.0,0.00010619,2]
[352439588,1739109033614,-500.0,0.00010619,2]
[352439589,1739109033625,-500.0,0.00010619,2]
[352439590,1739109033638,-500.0,0.00010619,2]
[352439591,1739109033651,-500.0,0.00010619,2]
[352439592,1739109033662,-500.0,0.00010619,2]
[352439593,1739109033673,-348.50274707,0.00010619,2]
[352439594,1739109033684,-500.0,0.00010619,2]
[352439595,1739109033695,-500.0,0.00010619,2]
[352439596,1739109033706,-500.0,0.00010619,2]
[352439597,1739109033718,-500.0,0.00010619,2]
[352439598,1739109033730,-500.0,0.00010619,2]
[352439599,1739109033742,-572.69144947,0.00010619,2]
[352439600,1739109033754,-500.0,0.00010619,2]
[352439601,1739109033766,-500.0,0.00010619,2]
[352439602,1739109033778,-500.0,0.00010619,2]
[352439603,1739109033791,-500.0,0.00010619,2]
[352439604,1739109033802,-987.34,0.00010619,2]
[352439605,1739109033812,-578.01,0.00010619,2]
[352439606,1739109033823,-500.0,0.00010619,2]
[352439607,1739109033833,-500.0,0.00010619,2]
[352439608,1739109033847,-500.0,0.00010619,2]
[352439609,1739109033858,-500.0,0.00010619,2]
[352439610,1739109033869,-500.0,0.00010619,2]
[352439611,1739109033881,-501.07658778,0.00010619,2]
[352439612,1739109033893,-500.0,0.00010619,2]
[352439613,1739109033905,-524.88,0.00010619,2]
[352439614,1739109033915,-500.0,0.00010619,2]
[352439615,1739109033925,-644.49843512,0.00010619,2]
[352439616,1739109033935,-500.0,0.00010619,2]
[352439617,1739109033945,-201.69262891,0.00010619,2]
[352439618,1739109033954,-500.0,0.00010619,2]
[352439619,1739109033964,-500.0,0.00010619,2]
[352439620,1739109033975,-500.0,0.00010619,2]
[352439621,1739109033986,-500.0,0.00010619,2]
[352439622,1739109033998,-500.0,0.00010619,2]
[352439623,1739109034010,-500.0,0.00010619,2]
[352439624,1739109034022,-500.0,0.00010619,2]
[352439625,1739109034032,-500.0,0.00010619,2]
[352439626,1739109034044,-500.0,0.00010619,2]
[352439627,1739109034053,-500.0,0.00010619,2]
[352439628,1739109034064,-222.83983979,0.00010619,2]
[352439629,1739109034074,-501.58865032,0.00010619,2]
[352439630,1739109034084,-500.0,0.00010619,2]
[352439631,1739109034095,-500.0,0.00010619,2]
[352439632,1739109034105,-611.87,0.00010619,2]
[352439633,1739109034116,-500.0,0.00010619,2]
[352439634,1739109034126,-500.0,0.00010619,2]
[352439635,1739109034136,-500.0,0.00010619,2]
[352439636,1739109034146,-500.0,0.00010619,2]
[352439637,1739109034156,-500.0,0.00010619,2]
[352439638,1739109034167,-500.0,0.00010619,2]
[352439639,1739109034177,-500.0,0.00010619,2]
[352439640,1739109034191,-500.0,0.00010619,2]
[352439641,1739109034201,-500.0,0.00010619,2]
[352439642,1739109034213,-500.0,0.00010619,2]
[352439643,1739109034223,-500.0,0.00010619,2]
[352439644,1739109034233,-500.0,0.00010619,2]
[352439645,1739109034244,-500.0,0.00010619,2]
[352439646,1739109034254,-500.0,0.00010619,2]
[352439647,1739109034265,-504.98194461,0.00010619,2]
[352439648,1739109034275,-500.0,0.00010619,2]
[352439649,1739109034287,-678.17,0.00010619,2]
[352439650,1739109034298,-500.0,0.00010619,2]
[352439651,1739109034308,-356.81215874,0.00010619,2]
[352439652,1739109034318,-500.0,0.00010619,2]
[352439653,1739109034328,-500.0,0.00010619,2]
[352439654,1739109034339,-500.0,0.00010619,2]
[352439655,1739109034350,-929.23,0.00010619,2]
[352439656,1739109034360,-500.0,0.00010619,2]
[352439657,1739109034370,-500.0,0.00010619,2]
[352439658,1739109034381,-504.47496603,0.00010619,2]
[352439659,1739109034392,-1207.58,0.00010619,2]
[352439660,1739109034403,-500.0,0.00010619,2]
[352439661,1739109034414,-500.0,0.00010619,2]
[352439662,1739109034424,-515.68,0.00010619,2]
[352439663,1739109034435,-500.0,0.00010619,2]
[352439664,1739109034446,-500.0,0.00010619,2]
[352439665,1739109034456,-500.0,0.00010619,2]
[352439666,1739109034467,-500.0,0.00010619,2]
[352439667,1739109034478,-522.16167733,0.00010619,2]
[352439668,1739109034488,-500.0,0.00010619,2]
[352439669,1739109034498,-500.0,0.00010619,2]
[352439670,1739109034509,-2934.75,0.00010619,2]
[352439671,1739109034519,-624.26,0.00010619,2]
[352439672,1739109034530,-500.0,0.00010619,2]
[352439673,1739109034541,-500.0,0.00010619,2]
[352439674,1739109034551,-500.0,0.00010619,2]
[352439675,1739109034562,-500.0,0.00010619,2]
[352439676,1739109034572,-500.0,0.00010619,2]
[352439677,1739109034582,-822.14,0.00010619,2]
[352439678,1739109034593,-503.5492988,0.00010619,2]
[352439679,1739109034603,-500.0,0.00010619,2]
[352439680,1739109034613,-500.0,0.00010619,2]
[352439681,1739109034624,-919.16,0.00010619,2]
[352439682,1739109034634,-653.01,0.00010619,2]
[352439683,1739109034648,-500.0,0.00010619,2]
[352439684,1739109034659,-500.0,0.00010619,2]
[352439685,1739109034670,-500.0,0.00010619,2]
[352439686,1739109034680,-500.0,0.00010619,2]
[352439687,1739109034691,-1054.68,0.00010619,2]
[352439688,1739109034701,-500.0,0.00010619,2]
[352439689,1739109034712,-505.97324159,0.00010619,2]
[352439690,1739109034723,-500.0,0.00010619,2]
[352439691,1739109034733,-503.96658364,0.00010619,2]
[352439692,1739109034744,-500.0,0.00010619,2]
[352439693,1739109034754,-500.0,0.00010619,2]
[352439694,1739109034764,-1633.47,0.00010619,2]
[352439695,1739109034774,-876.62,0.00010619,2]
[352439696,1739109034784,-500.0,0.00010619,2]
[352439697,1739109034795,-652.8,0.00010619,2]
[352439698,1739109034805,-523.11958217,0.00010619,2]
[352439699,1739109034816,-500.0,0.00010619,2]
[352439700,1739109034826,-503.8,0.00010619,2]
[352439701,1739109034836,-500.0,0.00010619,2]
[352439702,1739109034847,-500.0,0.00010619,2]
[352439703,1739109034857,-501.77659537,0.00010619,2]
[352439704,1739109034868,-539.49,0.00010619,2]
[352439705,1739109034878,-500.0,0.00010619,2]
[352439706,1739109034888,-500.0,0.00010619,2]
[352439707,1739109034898,-500.0,0.00010619,2]
[352439708,1739109034909,-632.98,0.00010619,2]
[352439709,1739109034919,-500.0,0.00010619,2]